Cogmind - Beta 15 @@@ ROGUE MODE // 2025.05.31 @ 02:00:25 Player: LeipeMeuteLeider Result: Destroyed by H-55 Commando with Gauss Rifle Performance ------------- Evolutions (2) 1000 Regions Visited (3) 600 Robots Destroyed (8) 40 Value Destroyed (152) 152 Prototype IDs (0) 0 Alien Tech Used (0) 0 Bonus (0) 0 TOTAL SCORE: 1792 Bonus ------- None Cogmind --------- Core Integrity 0/550 Matter 87/300 Energy 100/100 System Corruption 0% Temperature Cool (0) Movement Core (50) Location -8/Materials Parts ------- > --- POWER (2) -------- (None) > --- PROPULSION (4) --- (None) > --- UTILITY (3) ------ Machine Analyzer Advanced Visual Processing Unit Signal Interpreter > --- WEAPON (2) ------- Heavy Mace > --- INVENTORY (5) ---- Light Nuclear Core Grenade Launcher Blade Saw Greatsword Peak State ------------ > --- POWER ------------ Light Nuclear Core > --- PROPULSION ------- Flight Unit Flight Unit > --- UTILITY ---------- Machine Analyzer Advanced Visual Processing Unit > --- WEAPON ----------- Heavy Hammer Heavy Hammer > --- INVENTORY -------- Nuclear Core Beam Cannon Grenade Launcher Heavy Hammer Katana [Rating: 16] Favorites ----------- Power Nuclear Core Power Core Nuclear Core Propulsion Flight Unit Flight Unit Flight Unit Utility Machine Analyzer Processor Machine Analyzer Weapon Heavy Hammer Energy Cannon Beam Cannon Launcher Grenade Launcher Impact Weapon Heavy Hammer Slashing Weapon Blade Saw Build | -11 -10 -9 -8 ------- Run | Yrd Mat Mat Mat Slots Evolved 4 | . . 2 2 Power 1 | . . 1 . Propulsion 2 | . . 1 1 Utility 1 | . . . 1 Weapon . | . . . . Parts Attached 14 | . 2 4 8 Power 2 | . . . 2 Engine . | . . . . Core 2 | . . . 2 Reactor . | . . . . Propulsion 2 | . . 2 . Treads . | . . . . Leg . | . . . . Wheel . | . . . . Hover . | . . . . Flight 2 | . . 2 . Utility 3 | . . . 3 Device . | . . . . Storage . | . . . . Processor 3 | . . . 3 Hackware . | . . . . Protection . | . . . . Artifact . | . . . . Weapon 7 | . 2 2 3 Energy Gun . | . . . . Energy Cannon 1 | . 1 . . Ballistic Gun . | . . . . Ballistic Cannon . | . . . . Launcher 1 | . 1 . . Special Weapon . | . . . . Impact Weapon 4 | . . 2 2 Slashing Weapon 1 | . . . 1 Piercing Weapon . | . . . . Special Melee Weapon . | . . . . Unidentified Prototypes . | . . . . Parts Lost 1 | . . . 1 Power . | . . . . Propulsion 1 | . . . 1 Utility . | . . . . Weapon . | . . . . Highest Loss Streak 1 | . . . 1 To Critical Strikes . | . . . . Average Backups 3 | . . 1 4 Power . | . . . . Propulsion . | . . . . Utility . | . . . . Weapon 2 | . . 1 3 Tool/Special . | . . . . Unused Backups 2 | . . . 2 Power . | . . . . Propulsion . | . . . . Utility . | . . . . Weapon 2 | . . . 2 Tool/Special . | . . . . Average Slot Usage (%) 29 | . 10 18 39 Flight 6 | . . 4 8 Processor 10 | . . . 17 Launcher 3 | . 10 8 . Impact Weapon 9 | . . 4 13 Peak Build Rating 16 | . 1 6 16 Average Rating 6 | . . 2 10 On Entrance 1 | . . 1 6 Naked Turns 21 | . 21 . . Heaviest Build 6 | . 3 6 6 Greatest Support 8 | 3 3 8 8 Greatest Overweight (x) 1 | . . . 1 Average Overweight (x) . | . . . . Largest Inventory Capacity 5 | 5 5 5 5 Average Capacity 5 | 5 5 5 5 Most Carried 5 | . 2 3 5 Average Carried 3 | . . 1 4 Final Capacity 5 | 5 5 5 5 Final Carried 5 | . 1 3 5 Class Distribution -------------------- 100% | Mutant Dominant Class ---------------- Mutant | -10/Materials Mutant | -9/Materials Mutant | -8/Materials Resources | -11 -10 -9 -8 ----------- Run | Yrd Mat Mat Mat Matter Collected 162 | 69 . . 93 Remotely . | . . . . Salvage Created 181 | . 16 43 122 Parts 9 | . 4 2 3 Haulers Intercepted . | . . . . Recyclers Shooed . | . . . . Parts Field Recycled . | . . . . Retrieved Matter . | . . . . Parts Self-Destructed . | . . . . Prevented . | . . . . Kills | -11 -10 -9 -8 ------- Run | Yrd Mat Mat Mat Combat Hostiles Destroyed 6 | . . 1 5 Melee 2 | . . . 2 AOE 1 | . . 1 . Classes Destroyed 4 | . 1 1 2 Builder 1 | . 1 . . Tunneler 1 | . . . 1 Swarmer 4 | . . . 4 Sentry 2 | . . 1 1 Best Kill Streak 2 | . 1 1 2 Combat Bots Only 2 | . . 1 2 Max Kills in Single Turn 1 | . 1 1 1 Gunslinging . | . . . . Exploded 1 | . . 1 . Melee 1 | . . . 1 Uniques/NPCs Destroyed . | . . . . Combat | -11 -10 -9 -8 -------- Run | Yrd Mat Mat Mat Hostile Shots Fired 114 | . . 2 112 Missed 43 | . . . 43 Hits 71 | . . 2 69 Projectile 71 | . . 2 69 Critical Strikes 3 | . . . 3 Damage Taken 823 | . . 33 790 Core 577 | . . 15 562 Absorbed by Shields . | . . . . Core Remaining (%) 98 | 100 100 96 . Volleys Fired 4 | . 2 2 . Largest 1 | . 1 1 . Hottest 30 | . 30 30 . Shots Fired 4 | . 2 2 . Gun . | . . . . Cannon . | . . . . Launcher 4 | . 2 2 . Special . | . . . . Kinetic . | . . . . Thermal . | . . . . Explosive 4 | . 2 2 . Electromagnetic . | . . . . Robot Hit Streak 1 | . . 1 . Robot Miss Streak 2 | . 1 2 . Penetration Max . | . . . . Secondary Targets . | . . . . Shots Hit Robots 12 | . . 1 11 Core Hits 4 | . 1 1 2 Critical Kills 1 | . . . 1 Critical Parts Destroyed . | . . . . Critical Strikes 1 | . . . 1 Smash 1 | . . . 1 Melee Attacks 47 | . . . 47 Impact 47 | . . . 47 Slashing . | . . . . Piercing . | . . . . Sneak Attacks 1 | . . . 1 Combat Hostiles . | . . . . Follow-up Attacks 3 | . . . 3 Damage Inflicted 585 | . 78 39 468 Guns . | . . . . Cannons . | . . . . Explosions 117 | . 78 39 . Melee 468 | . . . 468 Ramming . | . . . . Kinetic . | . . . . Thermal . | . . . . Explosive 117 | . 78 39 . Electromagnetic . | . . . . Impact 468 | . . . 468 Slashing . | . . . . Piercing . | . . . . Highest Corruption . | . . . . Average Corruption . | . . . . Corruption Purged . | . . . . Corruption Blocked . | . . . . Overload Shots . | . . . . Overflow Damage 101 | . . . 101 Projectiles . | . . . . Explosions . | . . . . Melee 101 | . . . 101 Knockbacks 1 | . . . 1 Impact 1 | . . . 1 Kinetic . | . . . . Secondary . | . . . . Self-Inflicted Damage 2 | . 2 . . Shots 1 | . 1 . . Rammed . | . . . . Targets Rammed . | . . . . Kicked . | . . . . Crushed . | . . . . Highest Temperature 4 | . . 2 4 Average Temperature 3 | . . 2 4 Received Heat Transfer 162 | . . 9 153 Siege Activations . | . . . . Martial Activations . | . . . . Shielding Activations . | . . . . Robots Disrupted . | . . . . Combat Hostiles . | . . . . Robots Corrupted 4 | . . . 4 Combat Hostiles 3 | . . . 3 Parts Fried 6 | . . . 6 Impact Corruptions 6 | . . . 6 Robots Melted . | . . . . Combat Hostiles . | . . . . Parts Melted . | . . . . Heat Transferred . | . . . . Parts Sabotaged . | . . . . Parts Stolen . | . . . . Parts Stripped . | . . . . Power Chain Reactions . | . . . . Alert | -11 -10 -9 -8 ------- Run | Yrd Mat Mat Mat Maximum Alert Level 1 | . . . 1 Low Security (%) 83 | 100 100 100 72 Level 1 16 | . . . 27 Level 2 . | . . . . Level 3 . | . . . . Level 4 . | . . . . Level 5 . | . . . . High Security . | . . . . Max Security . | . . . . Peak Influence 285 | . 25 46 285 Initial 14 | . . 5 14 Average 85 | . 4 11 136 Influence Increases 541 | . 44 56 441 Destroy 0b10 Robot/C 120 | . . 20 100 Destroy 0b10 Robot/NC 10 | . 5 . 5 Destroy Leader 30 | . . 10 20 Successful Hack 9 | . 9 . . Disable Machine 15 | . 15 . . Destroy Structure 42 | . 15 11 16 Partial Spotted 30 | . . 15 15 Lose Combat Pursuer 285 | . . . 285 Influence Decreases 276 | . 29 35 212 Entered New Map 32 | . . 10 22 Time Decay 234 | . 29 25 180 Lost Part 10 | . . . 10 Squads Dispatched 2 | . . . 2 Investigation . | . . . . Extermination . | . . . . Reinforcement 2 | . . . 2 Assault . | . . . . Garrison . | . . . . Intercept . | . . . . Searches Triggered . | . . . . Construction Impeded . | . . . . Haulers Reinforced . | . . . . Active Scanning Responses . | . . . . Cargo Convoy Interrupts . | . . . . Stealth | -11 -10 -9 -8 --------- Run | Yrd Mat Mat Mat Distress Signals 3 | . . . 3 Communications Jammed . | . . . . Distress Signals . | . . . . Times Spotted 31 | . 2 2 27 Peak Tracking Total 9 | . 2 2 9 Tactical Retreats 5 | . . . 5 Traps | -11 -10 -9 -8 ------- Run | Yrd Mat Mat Mat Traps Triggered . | . . . . Indirectly . | . . . . Trap Hack Attempts . | . . . . Triggered . | . . . . Disarmed . | . . . . Reprogrammed . | . . . . Reused . | . . . . Traps Extracted . | . . . . Installed . | . . . . Triggered . | . . . . Machines | -11 -10 -9 -8 ---------- Run | Yrd Mat Mat Mat Machines Disabled 1 | . 1 . . Max in Single Turn 1 | . 1 . . Machines Repaired . | . . . . Machines Dismantled . | . . . . Machines Sabotaged . | . . . . Overloaded Fab Kills . | . . . . Hacking | -11 -10 -9 -8 --------- Run | Yrd Mat Mat Mat Machines Accessed 7 | . 3 2 2 Terminals 5 | . 2 2 1 Fabricators . | . . . . Repair Stations . | . . . . Recycling Units 1 | . 1 . . Scanalyzers 1 | . . . 1 Garrison Access . | . . . . Total Hacks 15 | . 5 4 6 Successful 6 | . 2 . 4 Failed 9 | . 3 4 2 Catastrophic 5 | . 2 3 . Database Lockouts . | . . . . Manual 10 | . 4 4 2 Terminals 10 | . 4 4 2 Fabricators . | . . . . Repair Stations . | . . . . Recycling Units 1 | . 1 . . Scanalyzers 4 | . . . 4 Garrison Access . | . . . . Terminal Hacks 1 | . 1 . . Level Access Points 1 | . 1 . . Fabricator Hacks . | . . . . Repair Station Hacks . | . . . . Recycling Unit Hacks 1 | . 1 . . Retrieve Components 1 | . 1 . . Scanalyzer 4 | . . . 4 Insert Component 2 | . . . 2 Analyze 2 | . . . 2 Garrison Access Hacks . | . . . . Unauthorized Hacks . | . . . . Terminals . | . . . . Fabricators . | . . . . Repair Stations . | . . . . Recycling Units . | . . . . Scanalyzers . | . . . . Garrison Access . | . . . . Data Cores Recovered . | . . . . Used . | . . . . Hacking Detections 6 | . 2 2 2 Full Trace Events 1 | . 1 . . Feedback Events . | . . . . Feedback Blocked . | . . . . Robot Schematics Acquired . | . . . . Robots Built . | . . . . Authchips . | . . . . Time . | . . . . Total Robot Build Rating . | . . . . Part Schematics Acquired 2 | . . . 2 Parts Built . | . . . . Authchips . | . . . . Time . | . . . . Total Part Build Rating . | . . . . Parts Repaired . | . . . . Time . | . . . . Parts Recycled . | . . . . Recycled Matter . | . . . . Retrieved Matter . | . . . . Retrieved Components 2 | . 2 . . Parts Scanalyzed 2 | . . . 2 Part Schematics Acquired 2 | . . . 2 Parts Damaged . | . . . . Bothacking | -11 -10 -9 -8 ------------ Run | Yrd Mat Mat Mat Used RIF Installer . | . . . . Robots Hacked . | . . . . Non-combat . | . . . . Combat . | . . . . Robot Hacks Applied . | . . . . Relay Couplers Released . | . . . . Fabnet Peak Effective % . | . . . . Robots Rewired . | . . . . Allies Hacked . | . . . . Hacks Repelled . | . . . . Allies | -11 -10 -9 -8 -------- Run | Yrd Mat Mat Mat Total Allies . | . . . . Largest Group . | . . . . Highest-Rated Group . | . . . . Highest-Rated Ally . | . . . . Total Orders . | . . . . Ally Attacks . | . . . . Total Damage . | . . . . Kills . | . . . . Allies Corrupted . | . . . . Allies Melted . | . . . . Intel | -11 -10 -9 -8 ------- Run | Yrd Mat Mat Mat Active Infowar (turns) 351 | . . . 351 Optics 283 | . . . 283 Machine Analysis 351 | . . . 351 Robot Analysis Total . | . . . . Derelict Logs Recovered . | . . . . Drone Launches . | . . . . Drone Recoveries . | . . . . Exploration | -11 -10 -9 -8 ------------- Run | Yrd Mat Mat Mat Turns Passed 613 | 11 105 126 371 Spaces Moved 921 | 21 180 213 507 Core 561 | 21 180 143 217 Treads . | . . . . Legs . | . . . . Wheels . | . . . . Hover . | . . . . Flight 360 | . . 70 290 Fastest Speed 37 | 50 50 37 37 Average Speed 45 | 50 50 45 42 Slowest Speed 120 | 50 50 50 120 Overloaded Moves . | . . . . Propulsion Burnouts . | . . . . Robots Hopped . | . . . . Potential Cave-ins 8 | . . . 8 Cave-ins Triggered . | . . . . Exploration Rate (%) 27 | 3 25 26 56 Regions Visited 3 Branch Regions . Pre-discovered Areas . | . . . . Known Exits Taken 1 | . 1 . . Unknown Exits Taken 2 | 1 . 1 . Scrap Searched . | . . . . Spaces Dug 34 | . 7 . 27 Terrain Destroyed 57 | . 14 16 27 Melee 27 | . . . 27 Projectile . | . . . . AOE 30 | . 14 16 . Terrain Rammed . | . . . . Walls Destroyed . | . . . . Machines Disabled . | . . . . Actions | -11 -10 -9 -8 --------- Run | Yrd Mat Mat Mat Total 1036 | 20 192 237 587 Wait 40 | . 7 17 16 Move 918 | 20 179 212 507 Hop . | . . . . Pick Up 4 | . 1 1 2 Fast Attach 12 | . 1 4 7 Attach 2 | . 1 . 1 Detach 6 | . 1 1 4 Swap . | . . . . Drop 7 | . . . 7 Fire 4 | . 2 2 . Melee 43 | . . . 43 Ram . | . . . . Kick . | . . . . Crush . | . . . . Escape Stasis . | . . . . Rewire . | . . . . Trap . | . . . . Miscellaneous . | . . . . Route ------- -11/Scrapyard -10/Materials (discovered 3 exits: *Mat x3) -9/Materials -8/Materials History --------- Turn | Location | Event 5 | -11/Scrapyard | Discovered new exit (range 12) 12 | -11/Scrapyard | Entered Materials 18 | -10/Materials | Identified exit to Materials 117 | -10/Materials | Entered another Materials area 117 | -9/Materials | Evolved 2 slots: Power x1, Propulsion x1 228 | -9/Materials | Discovered new exit (range 3) 243 | -9/Materials | Entered another Materials area 243 | -8/Materials | Evolved 2 slots: Propulsion x1, Utility x1 303 | -8/Materials | Build established: Mutant 446 | -8/Materials | Core integrity fell below 50% 577 | -8/Materials | Core integrity fell below 20% 614 | -8/Materials | Destroyed by H-55 Commando with Gauss Rifle Last Messages --------------- 00550_ K-01 Serf collects debris. 00559_ Sneak attack on T-07 Excavator. 00559_ Destroyed Wheel. 00559_ Destroyed Lgt. Ion Engine. 00559_ T-07 Excavator system corrupted by crushing effect. 00559_ T-07 Excavator knocked back. 00560_ T-07 Excavator system terminally corrupted. 00560_ Imp. Terrain Scanner fried. 00562_ Acquired 22 matter. 00562_ >> Machine Analyzer network decryption results: 00562_ Terminal x1 00568_ Dropped Hvy. Hammer. 00568_ Dropped Katana. 00569_ Acquired Greatsword. 00574_ W-25 Informer sends out distress signal. 00576_ Slug penetrates Wall. 00581_ K-01 Serf collects debris. 00582_ Slug penetrates Wall. 00592_ Slug penetrates Earth. 00602_ Penetrated by Slug. Map ----- +----------------------------------------------------+ | | | | | ?????????????????????????????????????????????????? | | ?????????????????????????????????????????????????? | | ?????????????????????????????????????????????????? | | ?????????????????????????????????????????????????? | | ?????????????????????????????????????????????????? | | ?????????????????????????????????????????????????? | | ?????????????????????????????????????????????????? | | ?????????????????????????????????????????????????? | | ?????????????????????????????????????????????????? | | ?????????????????????????????????????????????????? | | ?????????????????????????????????????????????????? | | ?????????????????????????????????????????????????? | | ?????????????????????????????????????????????????? | | ???"""?"""???????????????????????????????????????? | | ???"""?"""???????????????????????????????????????? | | ???"""?"""?######????????????????????????????????? | | ???????????# ????????????????????????????????? | | ???????????+ ?????????????????????????????????? | | ???????????# ?????????????????????????????????? | | ???????????# #?????????????????????????????????? | | ???????????# #?????????????????????????????????? | | ???????????# #?????????????????????????????????? | | ??########?# #????###?###??????????????????????? | | ??#////!!#?# #???## ###@#???"""????????????????? | | ??#// /!!#?# ##### # # # #??"""????????????????? | | ??# // ### ## # ###h####??"""????????????????? | | ### ## " ##?###????????????????????????? | | ####?????????"S??????????????????? | | T #????????????"""?????????????????? | | #?????????????""?????????????????? | | ## #????????????????????????????????? | | ########????????????????????????????????? | | #???????????????????????????????????????? | | ####/#???????????????????????????????????????? | | #?? ????????????????????""?????????????????? | | +?? ?"""????????????????""?????????????????? | | #####?? ?R"????????????????T"?????????????????? | | ?????? """????????????????""??????????????T??? | | ?????? ???????????????????""?????????????????? | | ?????? = ?????????????????????????????????????? | | ????? ?????????????????????????????????????? | | ????? ?????????????????????????????????????? | | ????#####+###??????????????##+##?????????????????? | | ????+ ?????????????? ?????????????????? | | ?""?# ??????????????? ?????????????????? | | ?Y"?# ??????????????? ?????????????????? | | ?""?# #??????????????? #?????????????????? | | ????# #??????????????? #?????????????????? | +----------------------------------------------------+ Best States ------------- Heat Dissipation 31 Energy Generation 5 Energy Capacity 100 Matter Stores 169 Matter Capacity 300 Sight Range 20 Terrain Scan Density 10 Evasion (%) 62 Item Schematics ----------------- Hvy. Hammer | -8/Materials | Scanalyzed Grenade Launcher | -8/Materials | Scanalyzed Robot Schematics ------------------ None Fabricated ------------ Nothing Repaired ---------- Nothing Alien Tech Used ----------------- None Achievements -------------- None Challenges ------------ None Game ------ Seed TractorLegSteel Manual? 0 Play Time 00:24:43 Cumulative 57.9 hours Start 2025.05.31 @ 01:36:03 End 2025.05.31 @ 02:00:25 Sessions 1 Manual Loads 0 Difficulty Rogue Special Mode None Game No. 57 Rogue 57 Adventurer 0 Explorer 0 Win Type - Total 0 Types 0/0/0/0/0/0/0/0/0/0 Lore% 12 Gallery% 27 Achievement% 26 Wizard Run 0 Options --------- Layout 0 ASCII 0 Keyboard 0 Movement Mouse Keybinds 0 Fullscreen 1 Font 18/SmallcapsGlow Map View 38x25 Zoom Use 98% Tactical HUD 1 Map Filters NONE Filters NONE Steam 1 RUN: f1cd9ee7-6477-46ea-a8c7-1a76e2d955f0